[Event "Schack-SM 2024: Mastarklassen"]
[Site "Fortnox Arena, Hejaregatan 5, Vaxjo, Sweden"]
[Date "2024.07.03"]
[Round "5.8"]
[White "Karlsson, Stefan 2005"]
[Black "Dingertz, Erik"]
[Result "0-1"]
[TimeControl "90 minutes for 40 moves + 30 minutes for the rest of the game + 30 seconds per move from move one."]
[WhiteElo "2072"]
[BlackElo "2081"]

1. e4 {[%clk 01:29:47]} {[%emt 00:01:11]} e5 {[%clk 01:30:38]} {[%emt
00:00:22]} 2. Nf3 {[%clk 01:29:26]} {[%emt 00:00:51]} Nc6 {[%emt 00:00:55]} 3.
Bb5 {[%emt 00:00:05]} a6 {[%clk 01:30:27]} {[%emt 00:00:44]} 4. Ba4 {[%clk
01:28:24]} {[%emt 00:01:30]} Nf6 {[%clk 01:30:47]} {[%emt 00:00:10]} 5. O-O
{[%clk 01:27:20]} {[%emt 00:01:33]} b5 {[%clk 01:31:13]} {[%emt 00:00:05]} 6.
Bb3 {[%clk 01:27:41]} {[%emt 00:00:10]} Bc5 {[%emt 00:04:22]} 7. c3 {[%clk
01:24:49]} {[%emt 00:00:24]} d6 {[%emt 00:05:19]} 8. a4 {[%clk 01:20:21]}
{[%emt 00:00:04]} Rb8 {[%clk 01:30:47]} {[%emt 00:00:07]} 9. d4 {[%clk
01:20:43]} {[%emt 00:00:07]} Bb6 {[%clk 01:31:12]} {[%emt 00:00:07]} 10. a5
{[%clk 01:21:10]} {[%emt 00:00:02]} Ba7 {[%clk 01:31:37]} {[%emt 00:00:04]} 11.
h3 {[%clk 01:21:36]} {[%emt 00:00:03]} Bb7 {[%emt 00:04:44]} 12. Be3 {[%clk
01:21:40]} {[%emt 00:00:08]} Ra8 {[%emt 00:07:42]} 13. Nbd2 {[%clk 01:15:37]}
{[%emt 00:01:31]} O-O {[%emt 00:01:31]} 14. Re1 {[%clk 01:14:49]} {[%emt
00:00:10]} exd4 {[%clk 01:24:45]} {[%emt 00:01:24]} 15. cxd4 {[%clk 01:14:57]}
{[%emt 00:00:21]} Nb4 {[%clk 01:25:12]} {[%emt 00:00:04]} 16. e5 {[%emt
00:02:46]} Nfd5 {[%clk 01:15:37]} {[%emt 00:07:38]} 17. Ne4 {[%clk 01:15:24]}
{[%emt 00:00:13]} Nxe3 {[%clk 01:14:24]} {[%emt 00:01:45]} 18. Rxe3 {[%clk
01:15:47]} {[%emt 00:00:07]} dxe5 {[%emt 00:14:04]} 19. Nxe5 {[%clk 01:02:20]}
{[%emt 00:05:02]} Bxd4 {[%emt 00:20:02]} 20. Nxf7 {[%clk 00:26:38]} {[%emt
00:20:48]} Rxf7 {[%clk 01:05:49]} {[%emt 00:00:19]} 21. Bxf7+ {[%clk 00:25:57]}
{[%emt 00:01:11]} Kxf7 {[%clk 01:06:13]} {[%emt 00:00:04]} 22. Qh5+ {[%clk
00:23:39]} {[%emt 00:02:49]} Kg8 {[%clk 01:05:07]} {[%emt 00:01:37]} 23. Ng5
{[%clk 00:20:30]} {[%emt 00:03:37]} h6 {[%clk 01:02:06]} {[%emt 00:03:32]} 24.
Qf7+ {[%clk 00:14:34]} {[%emt 00:06:26]} Kh8 {[%emt 00:00:20]} 25. Ne6 {[%clk
00:14:29]} {[%emt 00:00:19]} Qf6 {[%clk 01:00:41]} {[%emt 00:02:21]} 26. Qxf6
{[%clk 00:12:50]} {[%emt 00:02:10]} Bxf6 {[%clk 01:01:01]} {[%emt 00:00:09]} 27.
Nxc7 {[%clk 00:11:28]} {[%emt 00:01:52]} Nc2 {[%clk 00:56:53]} {[%emt
00:04:38]} 28. Nxa8 {[%clk 00:09:35]} {[%emt 00:02:23]} Nxe3 {[%clk 00:57:03]}
{[%emt 00:00:21]} 29. fxe3 {[%clk 00:09:38]} {[%emt 00:00:26]} Bxa8 {[%clk
00:57:29]} {[%emt 00:00:05]} 30. Rc1 {[%clk 00:09:50]} {[%emt 00:00:17]} Be4
{[%clk 00:57:10]} {[%emt 00:00:48]} 31. Rc8+ {[%clk 00:09:23]} {[%emt
00:00:58]} Kh7 {[%clk 00:57:28]} {[%emt 00:00:12]} 32. Re8 {[%clk 00:09:48]}
{[%emt 00:00:05]} Bd3 {[%clk 00:57:14]} {[%emt 00:00:45]} 33. b4 {[%clk
00:08:52]} {[%emt 00:01:26]} Bc3 {[%clk 00:52:47]} {[%emt 00:04:56]} 34. Re6
{[%clk 00:09:11]} {[%emt 00:00:11]} Bxb4 {[%clk 00:53:13]} {[%emt 00:00:06]} 35.
Rxa6 {[%clk 00:09:35]} {[%emt 00:00:05]} Bc5 {[%clk 00:48:32]} {[%emt
00:05:11]} 36. Kf2 {[%clk 00:09:55]} {[%emt 00:00:10]} Be4 {[%clk 00:47:46]}
{[%emt 00:01:16]} 37. Re6 {[%clk 00:09:53]} {[%emt 00:00:31]} Bd3 {[%clk
00:46:22]} {[%emt 00:01:55]} 38. Ke1 {[%clk 00:08:36]} {[%emt 00:01:46]} Bb4+
{[%clk 00:46:39]} {[%emt 00:00:12]} 39. Kd1 {[%clk 00:08:54]} {[%emt 00:00:12]}
Bxa5 {[%clk 00:46:58]} {[%emt 00:00:12]} 40. Ra6 {[%clk 00:07:59]} {[%emt
00:01:26]} Bc3 {[%clk 00:46:49]} {[%emt 00:00:38]} 41. Rd6 {[%clk 00:07:54]}
{[%emt 00:00:36]} Be4 {[%clk 00:46:53]} {[%emt 00:00:24]} 42. g4 {[%clk
00:07:40]} {[%emt 00:00:45]} Bf6 {[%clk 00:46:09]} {[%emt 00:01:14]} 43. Rb6
{[%clk 00:07:51]} {[%emt 00:00:20]} Bd3 {[%clk 00:45:14]} {[%emt 00:01:24]} 44.
e4 {[%clk 00:07:55]} {[%emt 00:00:26]} Bc3 {[%clk 00:44:27]} {[%emt 00:01:16]}
45. h4 {[%clk 00:07:34]} {[%emt 00:00:52]} b4 {[%clk 00:44:31]} {[%emt
00:00:27]} 46. e5 {[%clk 00:07:53]} {[%emt 00:00:12]} Kg8 {[%clk 00:40:55]}
{[%emt 00:04:05]} 47. e6 {[%clk 00:07:27]} {[%emt 00:00:55]} Kf8 {[%clk
00:41:12]} {[%emt 00:00:12]} 48. g5 {[%clk 00:02:37]} {[%emt 00:05:22]} hxg5
{[%clk 00:41:29]} {[%emt 00:00:13]} 49. hxg5 {[%clk 00:02:56]} {[%emt
00:00:11]} Ke7 {[%clk 00:41:55]} {[%emt 00:00:04]} 50. g6 {[%clk 00:02:10]}
{[%emt 00:01:16]} Bxg6 {[%clk 00:41:47]} {[%emt 00:00:40]} 51. Rc6 {[%clk
00:02:30]} {[%emt 00:00:08]} Bf5 {[%clk 00:41:26]} {[%emt 00:00:48]} 0-1

[Event "Schack-SM 2024: Mastarklassen"]
[Site "Fortnox Arena, Hejaregatan 5, Vaxjo, Sweden"]
[Date "2024.07.03"]
[Round "5.9"]
[White "Carlstrom, Niklas"]
[Black "Ostensson, Julia"]
[Result "1-0"]
[TimeControl "90 minutes for 40 moves + 30 minutes for the rest of the game + 30 seconds per move from move one."]
[WhiteElo "2100"]
[BlackElo "2004"]

1. d4 {[%clk 01:30:51]} {[%emt 00:00:07]} Nf6 {[%clk 01:30:55]} {[%emt
00:00:07]} 2. Nc3 {[%clk 01:31:14]} {[%emt 00:00:06]} d5 {[%clk 01:30:06]}
{[%emt 00:01:20]} 3. Bf4 {[%clk 01:31:17]} {[%emt 00:00:26]} g6 {[%clk
01:29:06]} {[%emt 00:01:30]} 4. e3 {[%clk 01:30:45]} {[%emt 00:01:01]} a6
{[%clk 01:27:11]} {[%emt 00:02:28]} 5. h4 {[%clk 01:29:02]} {[%emt 00:02:11]}
h6 {[%clk 01:24:13]} {[%emt 00:03:29]} 6. Nf3 {[%clk 01:27:44]} {[%emt
00:01:46]} Bg4 {[%clk 01:18:46]} {[%emt 00:05:58]} 7. Be2 {[%clk 01:27:13]}
{[%emt 00:01:00]} c5 {[%clk 00:53:40]} {[%emt 00:25:37]} 8. Ne5 {[%clk
01:14:44]} {[%emt 00:13:00]} Bxe2 {[%clk 00:53:27]} {[%emt 00:00:43]} 9. Qxe2
{[%clk 01:14:58]} {[%emt 00:00:14]} Qa5 {[%clk 00:45:20]} {[%emt 00:08:38]} 10.
O-O-O {[%clk 01:03:58]} {[%emt 00:11:30]} Nc6 {[%clk 00:39:50]} {[%emt
00:06:00]} 11. Nxc6 {[%clk 00:43:31]} {[%emt 00:20:57]} bxc6 {[%clk 00:40:15]}
{[%emt 00:00:05]} 12. Be5 {[%clk 00:43:25]} {[%emt 00:00:35]} Bg7 {[%clk
00:39:21]} {[%emt 00:01:25]} 13. h5 {[%clk 00:35:50]} {[%emt 00:08:05]} g5
{[%clk 00:22:34]} {[%emt 00:17:17]} 14. f4 {[%clk 00:27:57]} {[%emt 00:08:22]}
gxf4 {[%clk 00:11:40]} {[%emt 00:11:26]} 15. exf4 {[%clk 00:26:47]} {[%emt
00:01:38]} c4 {[%clk 00:06:59]} {[%emt 00:05:13]} 16. g4 {[%clk 00:21:39]}
{[%emt 00:05:37]} O-O-O {[%clk 00:05:59]} {[%emt 00:01:30]} 17. g5 {[%clk
00:18:07]} {[%emt 00:04:02]} Rhg8 {[%clk 00:05:05]} {[%emt 00:01:25]} 18. gxf6
{[%clk 00:08:02]} {[%emt 00:10:33]} exf6 {[%clk 00:05:30]} {[%emt 00:00:06]} 19.
Qg4+ {[%clk 00:07:50]} {[%emt 00:00:41]} Kb7 {[%clk 00:05:38]} {[%emt
00:00:24]} 20. Qf5 {[%clk 00:06:27]} {[%emt 00:01:52]} fxe5 {[%clk 00:05:41]}
{[%emt 00:00:28]} 21. Qxf7+ {[%clk 00:05:50]} {[%emt 00:01:05]} Ka8 {[%clk
00:05:12]} {[%emt 00:01:01]} 22. dxe5 {[%clk 00:05:07]} {[%emt 00:01:12]} Bh8
{[%clk 00:01:07]} {[%emt 00:04:35]} 23. Qe6 {[%clk 00:03:57]} {[%emt 00:01:39]}
Qc7 {[%clk 00:00:58]} {[%emt 00:00:39]} 24. Rhg1 {[%clk 00:03:37]} {[%emt
00:00:50]} Rge8 {[%clk 00:01:13]} {[%emt 00:00:16]} 25. Qxh6 {[%clk 00:03:37]}
{[%emt 00:00:29]} Qb6 {[%clk 00:00:36]} {[%emt 00:01:08]} 26. Rg6 {[%clk
00:01:53]} {[%emt 00:02:12]} Rc8 {[%clk 00:00:38]} {[%emt 00:00:31]} 27. Nxd5
{[%clk 00:01:43]} {[%emt 00:00:39]} Qc5 {[%clk 00:00:35]} {[%emt 00:00:34]} 28.
Nc3 {[%clk 00:01:24]} {[%emt 00:00:48]} Re7 {[%clk 00:00:36]} {[%emt 00:00:30]}
29. Rgd6 {[%clk 00:00:57]} {[%emt 00:00:57]} Rb7 {[%clk 00:00:33]} {[%emt
00:00:32]} 30. Rd8 {[%clk 00:01:09]} {[%emt 00:00:18]} Qe3+ {[%clk 00:00:58]}
{[%emt 00:00:06]} 31. R8d2 {[%clk 00:00:46]} {[%emt 00:00:51]} Rxb2 {[%clk
00:00:36]} {[%emt 00:00:54]} 32. Kxb2 {[%clk 00:00:47]} {[%emt 00:00:28]} Rb8+
{[%clk 00:01:03]} {[%emt 00:00:04]} 33. Kc1 {[%clk 00:01:11]} {[%emt 00:00:05]}
Qb6 {[%clk 00:00:50]} {[%emt 00:00:44]} 34. Rd7 {[%clk 00:01:00]} {[%emt
00:00:39]} Qe3+ {[%clk 00:01:00]} {[%emt 00:00:21]} 35. R1d2 {[%clk 00:01:11]}
{[%emt 00:00:18]} Qg1+ {[%clk 00:00:55]} {[%emt 00:00:36]} 36. Nd1 {[%clk
00:01:30]} {[%emt 00:00:10]} Qb6 {[%clk 00:01:23]} {[%emt 00:00:03]} 37. R2d4
{[%clk 00:01:14]} {[%emt 00:00:46]} Qb1+ {[%clk 00:01:07]} {[%emt 00:00:46]} 38.
Kd2 {[%clk 00:01:38]} {[%emt 00:00:06]} c3+ {[%clk 00:01:10]} {[%emt 00:00:27]}
39. Nxc3 {[%clk 00:01:50]} {[%emt 00:00:18]} Qh1 {[%clk 00:01:22]} {[%emt
00:00:19]} 40. Qh7 {[%clk 00:01:36]} {[%emt 00:00:43]} 1-0

[Event "Schack-SM 2024: Mastarklassen"]
[Site "Fortnox Arena, Hejaregatan 5, Vaxjo, Sweden"]
[Date "2024.07.02"]
[Round "4.8"]
[White "Landgren, Andreas"]
[Black "Ostensson, Julia"]
[Result "1/2-1/2"]
[TimeControl "90 minutes for 40 moves + 30 minutes for the rest of the game + 30 seconds per move from move one."]
[WhiteTitle "FM"]
[WhiteElo "2243"]
[BlackElo "2004"]

1. d4 {[%clk 01:30:58]} Nf6 {[%clk 01:30:56]} {[%emt 00:00:05]} 2. c4 {[%clk
01:31:19]} {[%emt 00:00:08]} g6 {[%clk 01:31:22]} {[%emt 00:00:05]} 3. Nc3
{[%clk 01:31:44]} {[%emt 00:00:05]} Bg7 {[%clk 01:31:49]} {[%emt 00:00:04]} 4.
e4 {[%clk 01:32:07]} {[%emt 00:00:06]} d6 {[%clk 01:32:12]} {[%emt 00:00:07]} 5.
Nf3 {[%clk 01:32:33]} {[%emt 00:00:04]} O-O {[%clk 01:32:34]} {[%emt 00:00:08]}
6. Be2 {[%clk 01:33:00]} {[%emt 00:00:03]} e5 {[%clk 01:32:59]} {[%emt
00:00:05]} 7. O-O {[%clk 01:33:24]} {[%emt 00:00:06]} Nc6 {[%clk 01:33:27]}
{[%emt 00:00:02]} 8. d5 {[%clk 01:33:49]} {[%emt 00:00:06]} Ne7 {[%clk
01:33:55]} {[%emt 00:00:01]} 9. Ne1 {[%clk 01:34:05]} {[%emt 00:00:13]} Nd7
{[%clk 01:34:06]} {[%emt 00:00:19]} 10. Be3 {[%clk 01:34:28]} {[%emt 00:00:07]}
f5 {[%clk 01:34:32]} {[%emt 00:00:04]} 11. f3 {[%clk 01:34:54]} {[%emt
00:00:05]} f4 {[%clk 01:34:59]} {[%emt 00:00:03]} 12. Bf2 {[%clk 01:35:19]}
{[%emt 00:00:04]} g5 {[%clk 01:35:26]} {[%emt 00:00:03]} 13. Rc1 {[%clk
01:35:15]} {[%emt 00:00:34]} Rf7 {[%clk 01:35:48]} {[%emt 00:00:07]} 14. c5
{[%clk 01:23:13]} {[%emt 00:12:33]} Nxc5 {[%clk 01:36:09]} {[%emt 00:00:09]} 15.
b4 {[%clk 01:23:33]} {[%emt 00:00:09]} Na6 {[%clk 01:36:35]} {[%emt 00:00:04]}
16. Nb5 {[%clk 01:22:10]} {[%emt 00:01:54]} Bd7 {[%clk 01:36:51]} {[%emt
00:00:13]} 17. a4 {[%clk 01:14:24]} {[%emt 00:08:16]} h5 {[%clk 01:29:07]}
{[%emt 00:08:15]} 18. Nxa7 {[%clk 01:01:13]} {[%emt 00:13:40]} Nxb4 {[%clk
01:29:01]} {[%emt 00:00:35]} 19. Qb3 {[%clk 00:52:55]} {[%emt 00:08:48]} b6
{[%emt 00:08:22]} 20. Nb5 {[%clk 00:32:39]} {[%emt 00:13:37]} Na6 {[%clk
01:25:21]} {[%emt 00:03:28]} 21. Nxc7 {[%emt 00:18:06]} Nxc7 {[%clk 01:09:10]}
{[%emt 00:00:13]} 22. Bxb6 {[%emt 00:08:32]} Bxa4 {[%emt 00:21:23]} 23. Qc4
{[%emt 00:08:59]} Bb5 {[%emt 00:01:28]} 24. Qxc7 {[%clk 00:11:14]} {[%emt
00:00:08]} Qxc7 {[%clk 00:51:46]} {[%emt 00:00:09]} 25. Bxc7 {[%emt 00:00:08]}
Bxe2 {[%clk 00:52:06]} {[%emt 00:00:07]} 26. Rf2 {[%emt 00:08:45]} Ba6 {[%emt
00:03:24]} 27. Bxd6 {[%emt 00:00:19]} Nc8 {[%emt 00:02:30]} 28. Bc7 {[%emt
00:01:37]} Rd7 {[%clk 00:38:41]} {[%emt 00:00:39]} 29. Rfc2 {[%clk 00:10:42]}
{[%emt 00:00:37]} Nd6 {[%clk 00:34:54]} {[%emt 00:04:18]} 30. Rc6 {[%clk
00:08:45]} {[%emt 00:02:26]} Nb5 {[%clk 00:33:47]} {[%emt 00:01:38]} 31. Bb6
{[%clk 00:08:51]} {[%emt 00:00:25]} Rd6 {[%clk 00:26:58]} {[%emt 00:07:19]} 32.
Ra1 {[%clk 00:05:19]} {[%emt 00:04:02]} Kf7 {[%clk 00:10:33]} {[%emt 00:16:55]}
33. Nd3 {[%clk 00:04:56]} {[%emt 00:00:53]} Bb7 {[%clk 00:10:27]} {[%emt
00:00:36]} 34. Rxa8 {[%clk 00:03:51]} {[%emt 00:01:35]} Bxa8 {[%clk 00:08:06]}
{[%emt 00:02:52]} 35. Rxd6 {[%clk 00:03:34]} {[%emt 00:00:46]} Nxd6 {[%clk
00:08:29]} {[%emt 00:00:06]} 36. Bc7 {[%clk 00:03:13]} {[%emt 00:00:52]} Nc4
{[%clk 00:04:01]} {[%emt 00:04:58]} 37. Nc5 {[%clk 00:03:03]} {[%emt 00:00:40]}
Bf8 {[%clk 00:03:10]} {[%emt 00:01:20]} 38. Nd7 {[%clk 00:03:07]} {[%emt
00:00:27]} Bg7 {[%clk 00:01:03]} {[%emt 00:02:38]} 39. Nc5 {[%clk 00:03:31]}
{[%emt 00:00:06]} Bf8 {[%clk 00:01:08]} {[%emt 00:00:25]} 40. Nd7 {[%clk
00:03:55]} {[%emt 00:00:04]} Bd6 {[%clk 00:00:41]} {[%emt 00:00:58]} 41. Bxd6
{[%clk 00:04:01]} {[%emt 00:00:24]} Nxd6 {[%clk 00:01:00]} {[%emt 00:00:12]} 42.
Nxe5+ {[%clk 00:04:26]} {[%emt 00:00:04]} Kf6 {[%clk 00:22:45]} {[%emt
00:08:45]} 43. Nd3 {[%clk 00:33:37]} {[%emt 00:01:18]} Nc4 {[%clk 00:22:27]}
{[%emt 00:00:48]} 44. h4 {[%clk 00:33:47]} {[%emt 00:00:20]} Bb7 {[%clk
00:16:47]} {[%emt 00:06:10]} 45. Kh2 {[%clk 00:29:50]} {[%emt 00:04:27]} Bc8
{[%clk 00:07:49]} {[%emt 00:09:28]} 1/2-1/2

[Event "Schack-SM 2024: Mastarklassen"]
[Site "Fortnox Arena, Hejaregatan 5, Vaxjo, Sweden"]
[Date "2024.07.02"]
[Round "4.9"]
[White "Mardell, Jimmy"]
[Black "Joensson, Oscar"]
[Result "1-0"]
[TimeControl "90 minutes for 40 moves + 30 minutes for the rest of the game + 30 seconds per move from move one."]
[WhiteElo "2186"]
[BlackElo "1989"]

1. e4 {[%clk 01:30:56]} {[%emt 00:00:04]} c6 {[%clk 01:30:55]} {[%emt
00:00:06]} 2. d4 {[%clk 01:31:21]} {[%emt 00:00:05]} d5 {[%clk 01:31:20]}
{[%emt 00:00:04]} 3. e5 {[%clk 01:31:42]} {[%emt 00:00:09]} c5 {[%clk
01:31:46]} {[%emt 00:00:05]} 4. c3 {[%clk 01:31:57]} {[%emt 00:00:15]} Nc6
{[%clk 01:32:04]} {[%emt 00:00:12]} 5. Be2 {[%clk 01:32:08]} {[%emt 00:00:19]}
Bf5 {[%clk 01:31:15]} {[%emt 00:01:18]} 6. Nf3 {[%clk 01:32:17]} {[%emt
00:00:21]} e6 {[%clk 01:31:14]} {[%emt 00:00:31]} 7. O-O {[%clk 01:32:37]}
{[%emt 00:00:11]} Bg6 {[%clk 01:30:36]} {[%emt 00:01:08]} 8. Be3 {[%clk
01:25:33]} {[%emt 00:07:34]} Qb6 {[%clk 01:25:21]} {[%emt 00:05:43]} 9. dxc5
{[%clk 01:16:35]} {[%emt 00:09:30]} Bxc5 {[%clk 01:20:51]} {[%emt 00:04:59]} 10.
Bxc5 {[%clk 01:16:55]} {[%emt 00:00:10]} Qxc5 {[%clk 01:21:15]} {[%emt
00:00:06]} 11. Nbd2 {[%clk 01:12:03]} {[%emt 00:05:22]} Nh6 {[%clk 01:17:22]}
{[%emt 00:04:24]} 12. Rc1 {[%clk 01:05:47]} {[%emt 00:06:45]} O-O {[%clk
01:05:53]} {[%emt 00:11:59]} 13. b4 {[%clk 01:01:41]} {[%emt 00:04:35]} Qb6
{[%clk 01:04:27]} {[%emt 00:01:57]} 14. b5 {[%clk 01:01:44]} {[%emt 00:00:27]}
Na5 {[%clk 01:04:00]} {[%emt 00:00:57]} 15. Qa4 {[%clk 01:01:15]} {[%emt
00:00:59]} Rac8 {[%clk 00:49:10]} {[%emt 00:15:20]} 16. c4 {[%clk 00:59:09]}
{[%emt 00:02:36]} dxc4 {[%clk 00:47:28]} {[%emt 00:02:12]} 17. Nxc4 {[%clk
00:58:52]} {[%emt 00:00:47]} Nxc4 {[%clk 00:47:50]} {[%emt 00:00:07]} 18. Rxc4
{[%clk 00:59:10]} {[%emt 00:00:13]} Rc5 {[%clk 00:47:22]} {[%emt 00:00:58]} 19.
Rd4 {[%clk 00:36:12]} {[%emt 00:23:28]} Bc2 {[%clk 00:38:12]} {[%emt 00:09:40]}
20. Qb4 {[%clk 00:35:54]} {[%emt 00:00:49]} Nf5 {[%clk 00:37:22]} {[%emt
00:01:18]} 21. Rd7 {[%clk 00:34:49]} {[%emt 00:01:36]} Rd5 {[%clk 00:27:12]}
{[%emt 00:10:40]} 22. Rxd5 {[%clk 00:34:52]} {[%emt 00:00:28]} exd5 {[%clk
00:27:36]} {[%emt 00:00:05]} 23. Rc1 {[%clk 00:28:28]} {[%emt 00:06:54]} Be4
{[%clk 00:24:38]} {[%emt 00:03:27]} 24. Nd2 {[%clk 00:26:18]} {[%emt 00:02:41]}
Nd4 {[%clk 00:14:17]} {[%emt 00:10:51]} 25. Bf1 {[%clk 00:26:40]} {[%emt
00:00:08]} Rd8 {[%clk 00:04:51]} {[%emt 00:09:56]} 26. a4 {[%clk 00:15:59]}
{[%emt 00:11:12]} a5 {[%clk 00:03:33]} {[%emt 00:01:48]} 27. Qe7 {[%clk
00:16:02]} {[%emt 00:00:26]} Bc2 {[%clk 00:02:50]} {[%emt 00:01:13]} 28. Qa3
{[%clk 00:03:22]} {[%emt 00:13:11]} Re8 {[%clk 00:02:32]} {[%emt 00:00:47]} 29.
Bd3 {[%clk 00:02:23]} {[%emt 00:01:29]} Rxe5 {[%clk 00:00:57]} {[%emt
00:02:05]} 30. Bxc2 {[%clk 00:02:01]} {[%emt 00:00:53]} Ne2+ {[%clk 00:01:02]}
{[%emt 00:00:24]} 31. Kf1 {[%clk 00:02:22]} {[%emt 00:00:09]} Nxc1 {[%clk
00:00:53]} {[%emt 00:00:38]} 32. Qxc1 {[%clk 00:02:35]} {[%emt 00:00:18]} Qh6
{[%clk 00:00:49]} {[%emt 00:00:34]} 33. Bd1 {[%clk 00:01:05]} {[%emt 00:02:00]}
Re8 {[%clk 00:00:52]} {[%emt 00:00:27]} 34. h3 {[%clk 00:01:05]} {[%emt
00:00:30]} Qf4 {[%clk 00:01:09]} {[%emt 00:00:12]} 35. g3 {[%clk 00:00:34]}
{[%emt 00:01:01]} Qb4 {[%clk 00:00:42]} {[%emt 00:00:57]} 36. Nf3 {[%clk
00:00:34]} {[%emt 00:00:32]} g6 {[%clk 00:00:41]} {[%emt 00:00:30]} 37. Kg2
{[%clk 00:00:53]} {[%emt 00:00:11]} d4 {[%clk 00:00:43]} {[%emt 00:00:28]} 38.
Qh6 {[%clk 00:01:07]} {[%emt 00:00:16]} f6 {[%clk 00:00:43]} {[%emt 00:00:29]}
39. Qf4 {[%clk 00:01:05]} {[%emt 00:00:33]} Kg7 {[%clk 00:00:40]} {[%emt
00:00:33]} 40. Nxd4 {[%clk 00:00:50]} {[%emt 00:00:45]} Qe1 {[%clk 00:00:32]}
{[%emt 00:00:37]} 41. Bf3 {[%clk 00:24:06]} {[%emt 00:07:14]} Rc8 {[%clk
00:28:20]} {[%emt 00:02:42]} 42. Qd6 {[%clk 00:21:39]} {[%emt 00:02:58]} Kh6
{[%clk 00:19:43]} {[%emt 00:09:07]} 43. Qxf6 {[%clk 00:21:16]} {[%emt
00:00:53]} 1-0

[Event "Schack-SM 2024: Mastarklassen"]
[Site "Fortnox Arena, Hejaregatan 5, Vaxjo, Sweden"]
[Date "2024.07.02"]
[Round "4.10"]
[White "Dingertz, Erik"]
[Black "Granath, Jonas"]
[Result "1-0"]
[TimeControl "90 minutes for 40 moves + 30 minutes for the rest of the game + 30 seconds per move from move one."]
[WhiteElo "2081"]
[BlackElo "1948"]

1. d4 {[%clk 01:30:57]} {[%emt 00:00:02]} d5 {[%clk 01:30:52]} {[%emt
00:00:09]} 2. c4 {[%clk 01:31:13]} {[%emt 00:00:14]} e6 {[%clk 01:31:09]}
{[%emt 00:00:13]} 3. Nf3 {[%clk 01:31:26]} {[%emt 00:00:17]} a6 {[%clk
01:31:28]} {[%emt 00:00:11]} 4. g3 {[%clk 01:31:14]} {[%emt 00:00:42]} dxc4
{[%clk 01:31:33]} {[%emt 00:00:25]} 5. Bg2 {[%clk 01:31:20]} {[%emt 00:00:24]}
c5 {[%clk 01:30:33]} {[%emt 00:01:31]} 6. O-O {[%clk 01:26:16]} {[%emt
00:05:33]} Nf6 {[%clk 01:30:40]} {[%emt 00:00:22]} 7. Na3 {[%clk 01:19:04]}
{[%emt 00:07:42]} Nc6 {[%clk 01:27:42]} {[%emt 00:03:29]} 8. dxc5 {[%clk
01:17:29]} {[%emt 00:02:06]} Qxd1 {[%clk 01:26:49]} {[%emt 00:01:22]} 9. Rxd1
{[%clk 01:17:55]} {[%emt 00:00:04]} Bxc5 {[%clk 01:26:59]} {[%emt 00:00:21]} 10.
Nxc4 {[%clk 01:18:18]} {[%emt 00:00:06]} O-O {[%clk 01:26:58]} {[%emt
00:00:31]} 11. Nfe5 {[%clk 01:13:39]} {[%emt 00:05:09]} Nb4 {[%clk 01:19:34]}
{[%emt 00:07:54]} 12. a3 {[%clk 01:04:16]} {[%emt 00:09:54]} Nbd5 {[%clk
01:19:17]} {[%emt 00:00:47]} 13. e4 {[%clk 01:03:49]} {[%emt 00:00:56]} Ne7
{[%clk 01:10:06]} {[%emt 00:09:41]} 14. b4 {[%clk 01:01:54]} {[%emt 00:02:25]}
Ba7 {[%clk 01:10:01]} {[%emt 00:00:35]} 15. Bb2 {[%clk 01:01:34]} {[%emt
00:00:50]} Ng6 {[%clk 01:04:59]} {[%emt 00:05:32]} 16. a4 {[%clk 00:54:28]}
{[%emt 00:07:37]} Nxe5 {[%clk 00:49:58]} {[%emt 00:15:30]} 17. Nxe5 {[%clk
00:53:00]} {[%emt 00:01:57]} Ne8 {[%clk 00:25:45]} {[%emt 00:24:43]} 18. Rd8
{[%clk 00:46:54]} {[%emt 00:06:37]} Bb6 {[%clk 00:22:47]} {[%emt 00:03:28]} 19.
Rd2 {[%clk 00:47:07]} {[%emt 00:00:16]} f6 {[%clk 00:21:11]} {[%emt 00:02:06]}
20. Nc4 {[%clk 00:47:34]} {[%emt 00:00:04]} Ba7 {[%clk 00:18:47]} {[%emt
00:02:54]} 21. e5 {[%clk 00:47:44]} {[%emt 00:00:20]} fxe5 {[%clk 00:18:46]}
{[%emt 00:00:32]} 22. Bxe5 {[%clk 00:43:35]} {[%emt 00:04:38]} Nf6 {[%clk
00:18:48]} {[%emt 00:00:28]} 23. Bxf6 {[%clk 00:33:03]} {[%emt 00:11:02]} gxf6
{[%clk 00:17:55]} {[%emt 00:01:24]} 24. a5 {[%clk 00:31:33]} {[%emt 00:01:59]}
e5 {[%clk 00:17:11]} {[%emt 00:01:14]} 25. Nb6 {[%clk 00:31:52]} {[%emt
00:00:10]} Rb8 {[%clk 00:14:32]} {[%emt 00:03:09]} 26. Rc1 {[%clk 00:30:09]}
{[%emt 00:02:14]} f5 {[%clk 00:07:47]} {[%emt 00:07:15]} 27. Nxc8 {[%clk
00:29:03]} {[%emt 00:01:35]} Rfxc8 {[%clk 00:07:59]} {[%emt 00:00:19]} 28.
Rxc8+ {[%clk 00:29:29]} {[%emt 00:00:04]} Rxc8 {[%clk 00:08:22]} {[%emt
00:00:07]} 29. Bxb7 {[%clk 00:29:57]} {[%emt 00:00:03]} Rc1+ {[%clk 00:06:41]}
{[%emt 00:02:09]} 30. Kg2 {[%clk 00:30:24]} {[%emt 00:00:03]} Rb1 {[%clk
00:06:09]} {[%emt 00:01:03]} 31. Bxa6 {[%clk 00:30:41]} {[%emt 00:00:13]} Rxb4
{[%clk 00:06:27]} {[%emt 00:00:12]} 32. Rd8+ {[%clk 00:31:07]} {[%emt
00:00:04]} 1-0